Cogmind - Beta 15 @@@ ROGUE MODE // 2025.08.23 @ 20:17:43 Player: Anting Result: Destroyed by OE-TOQ(R) with Subdweller Laser Performance ------------- Evolutions (0) 0 Regions Visited (2) 400 Robots Destroyed (28) 140 Value Destroyed (848) 848 Prototype IDs (0) 0 Alien Tech Used (0) 0 Bonus (0) 0 TOTAL SCORE: 1388 Bonus ------- None Cogmind --------- Core Integrity 0/250 Matter 294/300 Energy 67/100 System Corruption 0% Temperature Cool (18) Movement Walking (330) Ox3 Location -10/Subcaves Parts ------- > --- POWER (1) -------- (None) > --- PROPULSION (2) --- Aluminum Leg > --- UTILITY (2) ------ Large Storage Unit Makeshift Light Armor Plating > --- WEAPON (2) ------- Subdweller Beam Cannon Subdweller Machine Gun > --- INVENTORY (15) --- Subdweller Power Source Subdweller Power Source Subdweller Power Source Meta Core Medium Storage Unit Subdweller Optics Scrap Shield Subdweller Laser Subdweller Beam Cannon Subdweller Beam Cannon Subdweller Machine Gun Grenade Launcher Grenade Launcher Makeshift Spear Peak State ------------ > --- POWER ------------ Subdweller Power Source > --- PROPULSION ------- Aluminum Leg Aluminum Leg > --- UTILITY ---------- Large Storage Unit Makeshift Light Armor Plating > --- WEAPON ----------- Subdweller Beam Cannon Subdweller Machine Gun > --- INVENTORY -------- Subdweller Power Source Subdweller Power Source Subdweller Power Source Meta Core Medium Storage Unit Subdweller Optics Scrap Shield Subdweller Laser Subdweller Beam Cannon Subdweller Beam Cannon Subdweller Beam Cannon Subdweller Machine Gun Grenade Launcher Grenade Launcher [Rating: 16] Favorites ----------- Power Light Ion Engine Engine Light Ion Engine Propulsion Aluminum Leg Treads Light Treads Leg Aluminum Leg Utility Large Storage Unit Device Disposable Heat Sink Storage Large Storage Unit Protection Makeshift Light Armor Plating Weapon Subdweller Machine Gun Energy Gun Subdweller Laser Energy Cannon Subdweller Beam Cannon Ballistic Gun Subdweller Machine Gun Launcher Grenade Launcher Special Weapon Welding Torch Build | -11 -10 -10 ------- Run | Yrd Mat Sub Slots Evolved . | . . . Power . | . . . Propulsion . | . . . Utility . | . . . Weapon . | . . . Parts Attached 22 | 6 1 15 Power 3 | 1 . 2 Engine 3 | 1 . 2 Core . | . . . Reactor . | . . . Propulsion 5 | 2 . 3 Treads 3 | 2 . 1 Leg 2 | . . 2 Wheel . | . . . Hover . | . . . Flight . | . . . Utility 5 | 1 1 3 Device 2 | . . 2 Storage 2 | 1 1 . Processor . | . . . Hackware . | . . . Protection 1 | . . 1 Artifact . | . . . Weapon 9 | 2 . 7 Energy Gun 1 | . . 1 Energy Cannon 2 | . . 2 Ballistic Gun 4 | 2 . 2 Ballistic Cannon . | . . . Launcher 1 | . . 1 Special Weapon 1 | . . 1 Impact Weapon . | . . . Slashing Weapon . | . . . Piercing Weapon . | . . . Special Melee Weapon . | . . . Unidentified Prototypes . | . . . Parts Lost 11 | . . 11 Power 3 | . . 3 Propulsion 4 | . . 4 Utility 1 | . . 1 Weapon 3 | . . 3 Highest Loss Streak 3 | . . 3 To Critical Strikes . | . . . Average Backups 11 | 2 7 13 Power 2 | . 1 3 Propulsion . | 1 2 . Utility 2 | . . 2 Weapon 4 | . 2 5 Tool/Special . | . . . Unused Backups 15 | . . 15 Power 3 | . . 3 Propulsion 2 | . . 2 Utility 3 | . . 3 Weapon 6 | . . 6 Tool/Special 1 | . . 1 Average Slot Usage (%) 91 | . 85 93 Engine 10 | . 14 9 Treads 7 | . 28 1 Leg 19 | . . 26 Device 4 | . . 6 Storage 14 | . 14 14 Protection 4 | . . 6 Energy Gun 1 | . . 1 Energy Cannon 8 | . . 11 Ballistic Gun 17 | . 28 14 Peak Build Rating 16 | 6 7 16 Average Rating 11 | 4 6 13 On Entrance 4 | . 6 6 Naked Turns . | . . . Heaviest Build 41 | 11 26 41 Greatest Support 40 | 40 40 40 Greatest Overweight (x) 3 | . . 3 Average Overweight (x) . | . . 1 Largest Inventory Capacity 15 | 8 15 15 Average Capacity 14 | 7 13 15 Most Carried 15 | 4 9 15 Average Carried 12 | 2 7 14 Final Capacity 15 | 8 15 15 Final Carried 15 | 4 9 15 Class Distribution -------------------- 100% | Mutant Dominant Class ---------------- Mutant | -10/Materials Mutant | -10/Subcaves Resources | -11 -10 -10 ----------- Run | Yrd Mat Sub Matter Collected 701 | 255 89 357 Remotely . | . . . Salvage Created 982 | . 268 714 Parts 77 | . 23 54 Haulers Intercepted 1 | . 1 . Recyclers Shooed 1 | . 1 . Parts Field Recycled . | . . . Retrieved Matter . | . . . Parts Self-Destructed 11 | . . 11 Prevented . | . . . Kills | -11 -10 -10 ------- Run | Yrd Mat Sub Combat Hostiles Destroyed 25 | . 7 18 Guns 16 | . 7 9 Cannons 7 | . . 7 AOE 2 | . . 2 Classes Destroyed 6 | . 5 1 Worker 1 | . 1 . Tunneler 1 | . 1 . Hauler 1 | . 1 . Swarmer 5 | . 5 . Grunt 2 | . 2 . Subdweller 18 | . . 18 Best Kill Streak 3 | . 3 3 Combat Bots Only 3 | . 3 3 Max Kills in Single Turn 2 | . 2 1 Gunslinging 1 | . 1 . Exploded 1 | . . 1 Melee . | . . . Uniques/NPCs Destroyed . | . . . Combat | -11 -10 -10 -------- Run | Yrd Mat Sub Hostile Shots Fired 131 | . 62 69 Missed 40 | . 24 16 Hits 91 | . 38 53 Projectile 91 | . 38 53 AOE 3 | . . 3 Critical Strikes 2 | . . 2 Damage Taken 1563 | . 319 1244 Core 258 | . 30 228 Absorbed by Shields . | . . . Core Remaining (%) 100 | 100 . . Volleys Fired 83 | . 30 53 Largest 2 | . 2 2 Hottest 110 | . 40 110 Shots Fired 155 | . 60 95 Gun 126 | . 60 66 Cannon 20 | . . 20 Launcher 4 | . . 4 Special 5 | . . 5 Kinetic 117 | . 60 57 Thermal 34 | . . 34 Explosive 4 | . . 4 Electromagnetic . | . . . Robot Hit Streak 30 | . 10 30 Robot Miss Streak 5 | . 5 2 Penetration Max . | . . . Secondary Targets 4 | . 3 1 Max Gunslinging Chain 1 | . 1 1 Shots Hit Robots 97 | . 28 69 Core Hits 45 | . 15 30 Critical Kills . | . . . Critical Parts Destroyed 1 | . . 1 Critical Strikes 1 | . . 1 Destroy 1 | . . 1 Melee Attacks . | . . . Impact . | . . . Slashing . | . . . Piercing . | . . . Sneak Attacks . | . . . Combat Hostiles . | . . . Follow-up Attacks . | . . . Damage Inflicted 1893 | 3 363 1527 Guns 1198 | . 363 835 Cannons 331 | . . 331 Explosions 348 | . . 348 Melee . | . . . Ramming 3 | 3 . . Kinetic 1027 | . 363 664 Thermal 515 | . . 515 Explosive 348 | . . 348 Electromagnetic . | . . . Impact . | . . . Slashing . | . . . Piercing . | . . . Highest Corruption . | . . . Average Corruption . | . . . Corruption Purged . | . . . Corruption Blocked . | . . . Overload Shots . | . . . Overflow Damage . | . . . Projectiles . | . . . Explosions . | . . . Melee . | . . . Knockbacks . | . . . Impact . | . . . Kinetic . | . . . Secondary . | . . . Self-Inflicted Damage . | . . . Shots . | . . . Rammed 1 | 1 . . Targets Rammed 1 | 1 . . Kicked . | . . . Crushed . | . . . Highest Temperature 169 | . . 169 Average Temperature 53 | . . 53 Received Heat Transfer 478 | . 18 460 Siege Activations . | . . . Martial Activations . | . . . Shielding Activations . | . . . Robots Disrupted . | . . . Combat Hostiles . | . . . Robots Corrupted . | . . . Combat Hostiles . | . . . Parts Fried . | . . . Impact Corruptions . | . . . Robots Melted . | . . . Combat Hostiles . | . . . Parts Melted 2 | . . 2 Heat Transferred 744 | . . 744 Parts Sabotaged . | . . . Parts Stolen . | . . . Parts Stripped . | . . . Power Chain Reactions . | . . . Alert | -11 -10 -10 ------- Run | Yrd Mat Sub Maximum Alert Level . | . . . Low Security (%) 100 | 100 100 . Level 1 . | . . . Level 2 . | . . . Level 3 . | . . . Level 4 . | . . . Level 5 . | . . . High Security . | . . . Max Security . | . . . Peak Influence 58 | . 58 . Initial . | . . . Average 9 | . 10 . Influence Increases 177 | . 177 . Destroy 0b10 Robot/C 140 | . 140 . Destroy 0b10 Robot/NC 15 | . 15 . Destroy Leader 22 | . 22 . Influence Decreases 177 | . 167 10 Entered New Map 6 | . . 6 Time Decay 171 | . 167 4 Squads Dispatched 3 | . 3 . Investigation 1 | . 1 . Extermination . | . . . Reinforcement 2 | . 2 . Assault . | . . . Garrison . | . . . Intercept . | . . . Searches Triggered . | . . . Construction Impeded . | . . . Haulers Reinforced . | . . . Active Scanning Responses . | . . . Cargo Convoy Interrupts . | . . . Stealth | -11 -10 -10 --------- Run | Yrd Mat Sub Distress Signals . | . . . Communications Jammed . | . . . Distress Signals . | . . . Times Spotted 31 | . 12 19 Peak Tracking Total 4 | . 4 3 Tactical Retreats . | . . . Traps | -11 -10 -10 ------- Run | Yrd Mat Sub Traps Triggered 1 | . 1 . Indirectly . | . . . Trap Hack Attempts . | . . . Triggered . | . . . Disarmed . | . . . Reprogrammed . | . . . Reused . | . . . Traps Extracted . | . . . Installed . | . . . Triggered . | . . . Machines | -11 -10 -10 ---------- Run | Yrd Mat Sub Machines Disabled . | . . . Max in Single Turn . | . . . Machines Repaired . | . . . Machines Dismantled . | . . . Machines Sabotaged . | . . . Overloaded Fab Kills . | . . . Hacking | -11 -10 -10 --------- Run | Yrd Mat Sub Machines Accessed 1 | . . 1 Terminals . | . . . Fabricators . | . . . Repair Stations . | . . . Recycling Units . | . . . Scanalyzers . | . . . Garrison Access . | . . . Total Hacks 5 | . . 5 Successful 5 | . . 5 Failed . | . . . Catastrophic . | . . . Database Lockouts . | . . . Manual . | . . . Terminals . | . . . Fabricators . | . . . Repair Stations . | . . . Recycling Units . | . . . Scanalyzers . | . . . Garrison Access . | . . . Terminal Hacks 5 | . . 5 Record 5 | . . 5 Fabricator Hacks . | . . . Repair Station Hacks . | . . . Recycling Unit Hacks . | . . . Scanalyzer . | . . . Garrison Access Hacks . | . . . Unauthorized Hacks . | . . . Terminals . | . . . Fabricators . | . . . Repair Stations . | . . . Recycling Units . | . . . Scanalyzers . | . . . Garrison Access . | . . . Data Cores Recovered . | . . . Used . | . . . Hacking Detections . | . . . Full Trace Events . | . . . Feedback Events . | . . . Feedback Blocked . | . . . Robot Schematics Acquired . | . . . Robots Built . | . . . Authchips . | . . . Time . | . . . Total Robot Build Rating . | . . . Part Schematics Acquired . | . . . Parts Built . | . . . Authchips . | . . . Time . | . . . Total Part Build Rating . | . . . Parts Repaired . | . . . Time . | . . . Parts Recycled . | . . . Recycled Matter . | . . . Retrieved Matter . | . . . Retrieved Components . | . . . Parts Scanalyzed . | . . . Part Schematics Acquired . | . . . Parts Damaged . | . . . Bothacking | -11 -10 -10 ------------ Run | Yrd Mat Sub Used RIF Installer . | . . . Robots Hacked . | . . . Non-combat . | . . . Combat . | . . . Robot Hacks Applied . | . . . Relay Couplers Released . | . . . Fabnet Peak Effective % . | . . . Robots Rewired . | . . . Allies Hacked . | . . . Hacks Repelled . | . . . Allies | -11 -10 -10 -------- Run | Yrd Mat Sub Total Allies . | . . . Largest Group . | . . . Highest-Rated Group . | . . . Highest-Rated Ally . | . . . Total Orders . | . . . Ally Attacks . | . . . Total Damage . | . . . Kills . | . . . Allies Corrupted . | . . . Allies Melted . | . . . Intel | -11 -10 -10 ------- Run | Yrd Mat Sub Active Infowar (turns) 1 | . . 1 Optics 1 | . . 1 Robot Analysis Total . | . . . Derelict Logs Recovered 3 | . . 3 Drone Launches . | . . . Drone Recoveries . | . . . Exploration | -11 -10 -10 ------------- Run | Yrd Mat Sub Turns Passed 4292 | 88 1064 3140 Spaces Moved 1832 | 48 333 1451 Core 2 | 2 . . Treads 385 | 46 333 6 Legs 1445 | . . 1445 Wheels . | . . . Hover . | . . . Flight . | . . . Fastest Speed 50 | 50 160 160 Average Speed 192 | 155 160 200 Slowest Speed 330 | 160 160 330 Overloaded Moves . | . . . Propulsion Burnouts . | . . . Robots Hopped . | . . . Potential Cave-ins . | . . . Cave-ins Triggered . | . . . Exploration Rate (%) 56 | 5 74 90 Regions Visited 2 Branch Regions 1 Pre-discovered Areas 2 | . . 2 Known Exits Taken . | . . . Unknown Exits Taken 2 | 1 1 . Scrap Searched 16 | . . 16 Spaces Dug . | . . . Terrain Destroyed 19 | . . 19 Melee . | . . . Projectile 3 | . . 3 AOE 16 | . . 16 Terrain Rammed . | . . . Walls Destroyed . | . . . Machines Disabled . | . . . Actions | -11 -10 -10 --------- Run | Yrd Mat Sub Total 2453 | 58 810 1585 Wait 477 | . 441 36 Move 1830 | 47 332 1451 Hop . | . . . Pick Up 28 | 4 5 19 Fast Attach 9 | 6 1 2 Attach 10 | . . 10 Detach 2 | . . 2 Swap 6 | . . 6 Drop 7 | . 1 6 Fire 83 | . 30 53 Melee . | . . . Ram . | . . . Kick . | . . . Crush 1 | 1 . . Escape Stasis . | . . . Rewire . | . . . Trap . | . . . Miscellaneous . | . . . Route ------- -11/Scrapyard -10/Materials (discovered 3 exits: [*Mat] / [*Min] / *Sub) -10/Subcaves (discovered 2 exits: [*Mat x2]) History --------- Turn | Location | Event 15 | -11/Scrapyard | Discovered new exit (range 16) 89 | -11/Scrapyard | Entered Materials 321 | -10/Materials | Build established: Mutant 383 | -10/Materials | Discovered new exit (range 9) 915 | -10/Materials | Discovered new exit (range 14) 1132 | -10/Materials | Discovered new exit (range 5) 1153 | -10/Materials | Entered Subcaves 1154 | -10/Subcaves | Approached by a straggling Scientist 1157 | -10/Subcaves | Ambushed by Subdwellers from Twisted Machinery 1168 | -10/Subcaves | Ambushed by Subdweller buried in earth 1220 | -10/Subcaves | Lost 3 parts (2n1w) 1323 | -10/Subcaves | A Subdweller sparked back to life 1323 | -10/Subcaves | A Subdweller sparked back to life 1323 | -10/Subcaves | A Subdweller sparked back to life 1354 | -10/Subcaves | Core integrity fell below 50% 1382 | -10/Subcaves | Lost 3 parts (1p1n1w) 1391 | -10/Subcaves | Found Prototype Power Core 1405 | -10/Subcaves | Learned location of Storage (-7) 1444 | -10/Subcaves | Shifting Twisted Machinery released Sub. Beam Cannon 1451 | -10/Subcaves | Shifting Twisted Machinery released Sub. Machine Gun 1535 | -10/Subcaves | A swath of the cavern ceiling suddenly collapsed 1948 | -10/Subcaves | Shifting Twisted Machinery released Flamer 1953 | -10/Subcaves | Shifting Twisted Machinery released Flamer 2013 | -10/Subcaves | Discovered new exit (range 11) 2488 | -10/Subcaves | Discovered new exit (range 5) 2691 | -10/Subcaves | Visited Clippyterm 2697 | -10/Subcaves | Learned Factory trap positions 2697 | -10/Subcaves | Learned 40 Factory zone layouts 2746 | -10/Subcaves | Learned location of Zion (-6) 2746 | -10/Subcaves | Met a Zionite searching for "candidates" 3321 | -10/Subcaves | A swath of the cavern ceiling suddenly collapsed 3427 | -10/Subcaves | Shifting Twisted Machinery released Mak. Spear 3733 | -10/Subcaves | Learned Materials interactive machine intel 4292 | -10/Subcaves | Core integrity fell below 20% 4293 | -10/Subcaves | Destroyed by OE-TOQ(R) with Subdweller Laser Last Messages --------------- 03253_ Subatomizers dissect the Sub. Optics. 03291_ LI-BX3(R): "LEAVESUB!" 03292_ Subatomizers dissect the Sub. Optics. 03292_ Sub. Power Source destroyed. 03293_ LI-BX3(R) destroyed. 03303_ Acquired 2 matter. A swath of the cavern ceiling suddenly collapses. Mak. Spear falls loose from the Twisted Machinery. 03485_ Dropped Broken Sub. Beam Cannon. 03485_ Acquired Mak. Spear. 03568_ Acquired 2 matter. 03733_ Acquired derelict log, extracted data. Data stored: Materials interactive machine intel. 04283_ Aluminum Leg destroyed. 04293_ Disposable Heat Sink melted. 04293_ Sub. Beam Cannon melted. 04293_ 3D-QR2(R) destroyed. Map ----- +----------------------------------------------------+ | ?????????????????????????????????????????????????? | | ?????????????????????????????????????????????????? | | ?????????????????????????????????????????????????? | | ?????????????????????????????????????????????????? | | ?????####???????###???????####???????????????????? | | ????# #?#??## #####??# ##??????????????###?? | | ##?? ""# # #??# #??????????????# ## | | #??? """"""" #???# ##?????????????# # | | ##??? """"""" ###### ##????????????# # | | "???? #""" ## ## ##???????????# # | | ##???? ###" #???#######??# # | | "#????? " " #??## ##?## | | ##???? # " ##??# #??# | | "#??? # "#### ### #??## #??# | | #### # """ #??## ### ##?## #??# | | " " ?#"" "##### #######?## #??# | | " #???##" # ##???#### #?## | | "###### " ####;## #???## | | ## ## & ## ##### | | & ##### ## | | " ##??# | | # " #???### | | ## # ##????## "" ## | | # "# " ##???## ## #### | | % #??# "### ##??###### | | ?##@ " " #?###????????# | | # ##### #;/ " ""##??????????# | | #" "#???? ## ##%R""""###???????????## | | ##"" & #????# ##?## ###"" "##??????????????# | | ?## " #?????##????##?#"# "#???????????????## # | | ?# ######??????????????## " #???????????????### | | # ^ #????????????????????? "##?????????????????# | | ##????????????????????? "" ??????????????????# | | ##?????????????????????? " #???????????????### | | #??????????????????????? "??????????????????# | | #??????????????????????? ??????????????????## | | # ????????????????????????""?????????????????# | | # ???????????????????????????????????????#?###" | | # ???????????????????????????????????????# #"" | | ??????????????????????????????????????# | | ??????????????????????????????????????# | | ?????????????????????????????????????????#" | | ???????????????????????????????????????????# | | ???????????????????????????????????????????# | | ???????????????????????????????????????????## | | # ?????????????????????????????????????????????# | | ??????????????????????????????????????????????## % | | ??????????????????????????????????????????????# | | ??????????????????????????????????????????????# | | ??????????????????????????????????????????????# | +----------------------------------------------------+ Best States ------------- Heat Dissipation 25 Coolant Potential 50 Energy Generation 10 Energy Capacity 200 Matter Stores 300 Matter Capacity 300 Sight Range 16 Terrain Scan Density 10 Armor Coverage 100 Evasion (%) 40 Recoil Reduction 2 Item Schematics ----------------- None Robot Schematics ------------------ None Fabricated ------------ Nothing Repaired ---------- Nothing Alien Tech Used ----------------- None Achievements -------------- None Challenges ------------ None Game ------ Seed GrapheneSpliceCompanion Manual? 0 Play Time 00:13:40 Cumulative 291.4 hours Start 2025.08.23 @ 20:05:27 End 2025.08.23 @ 20:17:43 Sessions 1 Manual Loads 0 Difficulty Rogue Special Mode None Game No. 208 Rogue 208 Adventurer 0 Explorer 0 Win Type - Total 17 Types 8/0/5/1/1/0/0/1/0/1 Lore% 79 Gallery% 76 Achievement% 76 Wizard Run 0 Options --------- Layout 1 ASCII 0 Keyboard 0 Movement Mouse Keybinds 0 Fullscreen 2 Font 24/Smallcaps Map View 50x35 Zoom Use 0% Tactical HUD 1 Map Filters NONE Filters NONE Steam 1 RUN: a5545ae3-a35c-4beb-aa37-0f3f7797904a